[Event "World Senior chT-50 2019"]
[Site "Rhodes"]
[Date "2019.04.22"]
[Round "7.14"]
[White "Tischbierek, Raj"]
[Black "Garbarino, Rodolfo"]
[Result "1-0"]
[ECO "C50"]
[WhiteElo "2435"]
[BlackElo "2335"]
[Annotator "NA RC"]
[PlyCount "133"]
[EventDate "2019.04.16"]
[EventType "team-tourn"]
[EventCountry "GRE"]
[SourceTitle "playchess.com"]
[Source "ChessBase"]
[SourceQuality "1"]
[WhiteTeam "Germany"]
[BlackTeam "Argentina"]
[WhiteTeamCountry "GER"]
[BlackTeamCountry "ARG"]
[TimeControl "40/5400+30:1800+30"]

1. e4 {[%emt 0:00:00]} e5 {[%emt 0:00:00]} 2. Nf3 {[%emt 0:00:03]} Nc6 {[%emt 0:00:00]} 3. Bc4 {[%emt 0:00:03]} Bc5 {[%emt 0:00:01]} 4. d3 {[%emt 0:00:14]} Nf6 {[%emt 0:00:54]} 5. Nc3 {[%emt 0:00:06]} d6 {[%emt 0:00:12]} 6. Na4 {[%emt 0:00:09]} Bb6 {[%emt 0:01:30]} 7. a3 {[%emt 0:00:18]} Be6 {[%emt 0:06:41]} 8. Nxb6 {[%emt 0:04:32]} axb6 {[%emt 0:01:05]} 9. Bxe6 {[%emt 0:04:21]} fxe6 {[%emt 0:00:07]} 10. O-O {[%emt 0:01:19]} O-O {[%emt 0:00:24]} 11. Re1 {[%emt 0:03:39]} Nd7 {[%emt 0:04:47]} 12. c3 {[%emt 0:06:21]} Qf6 {[%emt 0:01:51]} 13. Bg5 {[%emt 0:04:34]} Qg6 {[%emt 0:07:33]} 14. Bh4 {[%emt 0:01:22]} Qh5 {[%emt 0:01:33]} 15. Bg3 {[%emt 0:00:19]} Kh8 $14 {[%emt 0:07:14]} 16. Rc1 {[%emt 0:08:10]} Rad8 {[%emt 0:20:49]} 17. d4 {[%emt 0:02:14]} Qh6 {[%emt 0:01:16]} 18. Qe2 {[%emt 0:08:04]} Rf7 {[%emt 0:06:16]} 19. Red1 {[%emt 0:05:40]} exd4 {[%emt 0:05:12]} 20. cxd4 {[%emt 0:00:39]} Nf6 {[%emt 0:00:14]} 21. b4 {[%emt 0:15:59]} Nh5 {[%emt 0:08:30]} 22. b5 {[%emt 0:03:14]} Nxg3 {[%emt 0:00:14]} 23. hxg3 {[%emt 0:00:36]} Na7 {[%emt 0:04:51]} 24. d5 {[%emt 0:04:01]} Re8 {[%emt 0:02:53]} 25. Qd3 {[%emt 0:01:33]} e5 {[%emt 0:04:02]} 26. a4 {[%emt 0:00:39]} Qf6 {[%emt 0:02:39]} 27. Rc3 {[%emt 0:01:52]} g5 {[%emt 0:00:32]} 28. Qe3 {[%emt 0:01:46]} h6 {[%emt 0:00:55]} 29. Rdc1 {[%emt 0:00:16]} Ree7 {[%emt 0:02:58]} 30. R1c2 {[%emt 0:01:57]} Qg6 {[%emt 0:01:48]} 31. Rc4 {[%emt 0:02:06]} Nc8 {[%emt 0:00:56]} 32. g4 {[%emt 0:04:11]} Kg8 {[%emt 0:02:36]} 33. Nh2 {[%emt 0:02:41]} h5 {[%emt 0:00:56]} 34. Qh3 {[%emt 0:01:40]} h4 {[%emt 0:00:50]} 35. Nf1 {[%emt 0:01:10]} Rd7 {[%emt 0:00:37]} 36. Ne3 {[%emt 0:00:39]} Ne7 {[%emt 0:02:01]} 37. f3 {[%emt 0:00:15]} Qf6 {[%emt 0:00:36]} 38. Rxc7 {[%emt 0:03:51]} Rxc7 {[%emt 0:00:12]} 39. Rxc7 {[%emt 0:00:02]} Qf4 {[%emt 0:00:36]} 40. Rc3 {[%emt 0:00:00]} Rf8 {[%emt 0:00:00]} 41. Qh2 {[%emt 0:02:44]} Qf6 {[%emt 0:03:09]} 42. Nf5 {[%emt 0:05:38]} Nxf5 {[%emt 0:01:41]} 43. gxf5 {[%emt 0:00:14]} Ra8 {[%emt 0:01:21]} 44. Rc4 {[%emt 0:00:12]} Qd8 {[%emt 0:01:13]} 45. g3 {[%emt 0:02:09]} Rc8 {[%emt 0:04:15]} 46. Rxc8 {[%emt 0:01:15]} Qxc8 {[%emt 0:00:06]} 47. Qd2 {[%emt 0:01:09]} Kf7 {[%emt 0:05:31]} 48. Qxg5 {[%emt 0:02:01]} Qc5+ {[%emt 0:00:10]} 49. Kg2 {[%emt 0:00:16]} hxg3 {[%emt 0:00:29]} 50. Qxg3 {[%emt 0:00:42]} Qc2+ {[%emt 0:01:08]} 51. Kh3 {[%emt 0:00:17]} Qc1 {[%emt 0:09:14]} 52. Qg6+ {[%emt 0:00:46]} Ke7 {[%emt 0:00:02]} 53. Qe6+ {[%emt 0:03:00]} Kd8 {[%emt 0:01:26]} 54. Qxd6+ {[%emt 0:00:17]} Kc8 {[%emt 0:00:04]} 55. Qe6+ {[%emt 0:00:43]} Kd8 {[%emt 0:00:21]} 56. Qxb6+ {[%emt 0:01:02]} Ke8 {[%emt 0:00:37]} 57. Qg6+ {[%emt 0:00:37]} Kd8 {[%emt 0:00:13]} 58. Qf6+ {[%emt 0:08:33]} Kd7 {[%emt 0:01:19]} 59. Qxe5 {[%emt 0:00:40]} Qg5 {[%emt 0:02:31]} 60. Qe6+ {[%emt 0:02:41]} Kd8 {[%emt 0:00:34]} 61. Qg6 {[%emt 0:01:15]} Qc1 {[%emt 0:00:24]} 62. Kg4 {[%emt 0:01:07]} Qg1+ {[%emt 0:00:32]} 63. Kh5 {[%emt 0:00:07]} Qh2+ {[%emt 0:00:39]} 64. Kg5 {[%emt 0:00:05]} Qg3+ {[%emt 0:00:51]} 65. Kh6 {[%emt 0:00:11]} Qh4+ {[%emt 0:02:48]} 66. Kg7 {[%emt 0:00:06]} Qe7+ {[%emt 0:00:15]} 67. Kg8 {[%emt 0:00:09]} 1-0

[Event "World Senior chT-50 2019"]
[Site "Rhodes"]
[Date "2019.04.22"]
[Round "7.15"]
[White "Llanos, Guillermo"]
[Black "Brendel, Oliver"]
[Result "0-1"]
[ECO "A35"]
[WhiteElo "2293"]
[BlackElo "2339"]
[Annotator "NA"]
[PlyCount "78"]
[EventDate "2019.04.16"]
[EventType "team-tourn"]
[EventCountry "GRE"]
[SourceTitle "playchess.com"]
[Source "ChessBase"]
[SourceQuality "1"]
[WhiteTeam "Argentina"]
[BlackTeam "Germany"]
[WhiteTeamCountry "ARG"]
[BlackTeamCountry "GER"]
[TimeControl "40/5400+30:1800+30"]

1. Nf3 {[%emt 0:00:00]} Nf6 {[%emt 0:00:00]} 2. c4 {[%emt 0:00:00]} g6 {[%emt 0:01:11]} 3. Nc3 {[%emt 0:00:00]} c5 {[%emt 0:00:09]} 4. d4 {[%emt 0:00:00]} cxd4 {[%emt 0:00:45]} 5. Nxd4 {[%emt 0:00:06]} Nc6 {[%emt 0:03:51]} 6. Nc2 {[%emt 0:00:08]} Bg7 {[%emt 0:01:52]} 7. g3 {[%emt 0:00:10]} d6 {[%emt 0:01:20]} 8. Bg2 {[%emt 0:00:08]} Be6 {[%emt 0:01:00]} 9. b3 {[%emt 0:06:04]} Qd7 $14 {[%emt 0:16:45]} 10. h3 {[%emt 0:04:47]} O-O {[%emt 0:07:00]} 11. Bb2 {[%emt 0:00:27]} Rab8 {[%emt 0:10:25]} 12. Nd5 {[%emt 0:36:59]} Nxd5 {[%emt 0:05:01]} 13. Bxg7 {[%emt 0:01:28]} Ne3 {[%emt 0:03:25]} 14. Nxe3 {[%emt 0:00:07]} Kxg7 {[%emt 0:00:07]} 15. Qd2 {[%emt 0:04:12]} Rfc8 {[%emt 0:07:41]} 16. Rd1 {[%emt 0:01:21]} h5 {[%emt 0:04:24]} 17. c5 {[%emt 0:04:17]} Kg8 {[%emt 0:06:01]} 18. cxd6 {[%emt 0:00:22]} Qxd6 {[%emt 0:00:29]} 19. Qxd6 {[%emt 0:00:40]} exd6 {[%emt 0:00:06]} 20. Rxd6 {[%emt 0:09:27]} Nb4 {[%emt 0:00:11]} 21. O-O {[%emt 0:16:11]} Nxa2 {[%emt 0:00:14]} 22. Nd5 {[%emt 0:00:30]} Kf8 {[%emt 0:07:08]} 23. Nf4 {[%emt 0:06:28]} Bxb3 {[%emt 0:02:51]} 24. Rb1 {[%emt 0:00:12]} Rc1+ {[%emt 0:00:37]} 25. Rxc1 {[%emt 0:00:04]} Nxc1 {[%emt 0:00:07]} 26. Rd7 {[%emt 0:00:03]} a5 {[%emt 0:03:28]} 27. Rc7 {[%emt 0:01:54]} g5 {[%emt 0:00:06]} 28. Nxh5 {[%emt 0:00:24]} Nxe2+ {[%emt 0:00:17]} 29. Kf1 {[%emt 0:00:05]} Nd4 {[%emt 0:00:20]} 30. Nf6 {[%emt 0:01:44]} Kg7 {[%emt 0:07:56]} 31. Nd7 {[%emt 0:00:05]} Rd8 {[%emt 0:00:44]} 32. Rxb7 {[%emt 0:00:21]} a4 {[%emt 0:00:31]} 33. Nc5 {[%emt 0:01:17]} Bc4+ {[%emt 0:00:13]} 34. Kg1 {[%emt 0:00:09]} a3 {[%emt 0:00:14]} 35. Ra7 {[%emt 0:00:11]} a2 {[%emt 0:00:13]} 36. f4 {[%emt 0:02:44]} gxf4 {[%emt 0:04:22]} 37. Bf1 {[%emt 0:01:36]} Bd5 {[%emt 0:00:35]} 38. gxf4 {[%emt 0:01:43]} Rb8 {[%emt 0:00:42]} 39. Kf2 {[%emt 0:00:35]} Rb1 {[%emt 0:00:56]} 0-1

[Event "World Senior chT-50 2019"]
[Site "Rhodes"]
[Date "2019.04.22"]
[Round "7.16"]
[White "Maier, Christian"]
[Black "Grushka, Carlos"]
[Result "1/2-1/2"]
[ECO "D40"]
[WhiteElo "2325"]
[BlackElo "2251"]
[Annotator "NA"]
[PlyCount "27"]
[EventDate "2019.04.16"]
[EventType "team-tourn"]
[EventCountry "GRE"]
[SourceTitle "playchess.com"]
[Source "ChessBase"]
[SourceQuality "1"]
[WhiteTeam "Germany"]
[BlackTeam "Argentina"]
[WhiteTeamCountry "GER"]
[BlackTeamCountry "ARG"]
[TimeControl "40/5400+30:1800+30"]

1. d4 {[%emt 0:00:00]} d5 {[%emt 0:00:48]} 2. c4 {[%emt 0:00:00]} e6 {[%emt 0:00:09]} 3. Nc3 {[%emt 0:00:00]} c5 {[%emt 0:00:07]} 4. e3 {[%emt 0:00:17]} Nc6 {[%emt 0:00:05]} 5. Nf3 {[%emt 0:00:05]} Nf6 {[%emt 0:00:06]} 6. a3 {[%emt 0:00:12]} a6 {[%emt 0:16:50]} 7. Bd3 {[%emt 0:01:35]} dxc4 {[%emt 0:01:34]} 8. Bxc4 {[%emt 0:00:08]} Be7 {[%emt 0:01:41]} 9. O-O {[%emt 0:00:18]} cxd4 {[%emt 0:02:29]} 10. exd4 {[%emt 0:00:12]} O-O {[%emt 0:00:12]} 11. Ba2 {[%emt 0:01:22]} b5 {[%emt 0:01:13]} 12. Bg5 {[%emt 0:04:29]} Bb7 $11 {[%emt 0:00:58]} 13. Re1 {[%emt 0:02:46]} b4 {[%emt 0:03:23]} 14. Na4 {[%emt 0:10:59]} 1/2-1/2

[Event "World Senior chT-50 2019"]
[Site "Rhodes"]
[Date "2019.04.22"]
[Round "7.17"]
[White "Lewis, Andrew P"]
[Black "Wallner, Joachim"]
[Result "1/2-1/2"]
[ECO "D15"]
[WhiteElo "2347"]
[BlackElo "2271"]
[Annotator "NA"]
[PlyCount "25"]
[EventDate "2019.04.16"]
[EventType "team-tourn"]
[EventCountry "GRE"]
[SourceTitle "playchess.com"]
[Source "ChessBase"]
[SourceQuality "1"]
[WhiteTeam "England"]
[BlackTeam "Austria"]
[WhiteTeamCountry "ENG"]
[BlackTeamCountry "AUT"]
[TimeControl "40/5400+30:1800+30"]

1. c4 {[%emt 0:00:00]} Nf6 {[%emt 0:00:00]} 2. Nc3 {[%emt 0:00:04]} c6 {[%emt 0:00:00]} 3. Nf3 {[%emt 0:00:15]} d5 {[%emt 0:00:01]} 4. d4 {[%emt 0:00:07]} a6 {[%emt 0:01:15]} 5. c5 {[%emt 0:00:13]} Bf5 {[%emt 0:02:06]} 6. Qb3 {[%emt 0:00:20]} Qc8 {[%emt 0:00:12]} 7. Bf4 {[%emt 0:03:30]} Nbd7 {[%emt 0:00:43]} 8. h3 {[%emt 0:00:39]} h6 {[%emt 0:00:16]} 9. e3 {[%emt 0:01:24]} e6 {[%emt 0:00:04]} 10. Be2 {[%emt 0:01:28]} Be7 {[%emt 0:00:05]} 11. O-O {[%emt 0:01:59]} O-O {[%emt 0:00:04]} 12. Rfc1 {[%emt 0:01:45]} Re8 {[%emt 0:01:09]} 13. Qd1 {[%emt 0:06:18]} 1/2-1/2

[Event "World Senior chT-50 2019"]
[Site "Rhodes"]
[Date "2019.04.22"]
[Round "7.18"]
[White "Denk, Adolf"]
[Black "Frostick, Clive A"]
[Result "1/2-1/2"]
[ECO "D27"]
[WhiteElo "2255"]
[BlackElo "2121"]
[Annotator "NA"]
[PlyCount "31"]
[EventDate "2019.04.16"]
[EventType "team-tourn"]
[EventCountry "GRE"]
[SourceTitle "playchess.com"]
[Source "ChessBase"]
[SourceQuality "1"]
[WhiteTeam "Austria"]
[BlackTeam "England"]
[WhiteTeamCountry "AUT"]
[BlackTeamCountry "ENG"]
[TimeControl "40/5400+30:1800+30"]

1. d4 {[%emt 0:00:00]} d5 {[%emt 0:00:00]} 2. Nf3 {[%emt 0:00:00]} e6 {[%emt 0:00:35]} 3. c4 {[%emt 0:00:00]} dxc4 {[%emt 0:01:15]} 4. e3 {[%emt 0:01:10]} Nf6 {[%emt 0:00:46]} 5. Bxc4 {[%emt 0:00:06]} c5 {[%emt 0:00:32]} 6. O-O {[%emt 0:00:08]} a6 {[%emt 0:02:02]} 7. a4 {[%emt 0:01:04]} Nc6 {[%emt 0:07:33]} 8. Qe2 {[%emt 0:02:24]} Qc7 {[%emt 0:00:52]} 9. Nc3 {[%emt 0:00:24]} Bd6 {[%emt 0:05:21]} 10. dxc5 {[%emt 0:06:36]} Bxc5 {[%emt 0:01:05]} 11. e4 {[%emt 0:06:55]} b6 {[%emt 0:21:06]} 12. Bg5 {[%emt 0:11:25]} Ng4 {[%emt 0:16:37]} 13. g3 {[%emt 0:07:24]} h6 {[%emt 0:04:45]} 14. Bf4 {[%emt 0:03:35]} Qe7 {[%emt 0:03:51]} 15. Rae1 {[%emt 0:03:41]} g5 {[%emt 0:04:46]} 16. Bc1 {[%emt 0:09:43]} 1/2-1/2

[Event "World Senior chT-50 2019"]
[Site "Rhodes"]
[Date "2019.04.22"]
[Round "7.19"]
[White "Fraser-Mitchell, Jeremy N"]
[Black "Ernst, Michael"]
[Result "0-1"]
[ECO "D53"]
[WhiteElo "2073"]
[BlackElo "2184"]
[Annotator "NA"]
[PlyCount "44"]
[EventDate "2019.04.16"]
[EventType "team-tourn"]
[EventCountry "GRE"]
[SourceTitle "playchess.com"]
[Source "ChessBase"]
[SourceQuality "1"]
[WhiteTeam "England"]
[BlackTeam "Austria"]
[WhiteTeamCountry "ENG"]
[BlackTeamCountry "AUT"]
[TimeControl "40/5400+30:1800+30"]

1. d4 {[%emt 0:04:18]} d5 {[%emt 0:00:00]} 2. c4 {[%emt 0:00:05]} e6 {[%emt 0:00:00]} 3. Nc3 {[%emt 0:00:10]} Nf6 {[%emt 0:00:00]} 4. Bg5 {[%emt 0:00:10]} Be7 {[%emt 0:00:04]} 5. e3 {[%emt 0:00:29]} h6 {[%emt 0:00:11]} 6. Bf4 {[%emt 0:00:25]} O-O {[%emt 0:02:39]} 7. cxd5 {[%emt 0:03:05]} Nxd5 {[%emt 0:01:42]} 8. Bg3 {[%emt 0:02:03]} c5 {[%emt 0:01:44]} 9. Nf3 {[%emt 0:05:46]} Nc6 {[%emt 0:02:01]} 10. Be2 {[%emt 0:06:03]} cxd4 {[%emt 0:06:16]} 11. exd4 {[%emt 0:00:30]} b6 {[%emt 0:01:52]} 12. O-O {[%emt 0:01:29]} Bb7 {[%emt 0:00:06]} 13. Rc1 {[%emt 0:03:57]} Rc8 {[%emt 0:03:24]} 14. Re1 $15 {[%emt 0:05:35]} Na5 {[%emt 0:08:54]} 15. Bb5 {[%emt 0:22:06]} a6 {[%emt 0:10:33]} 16. Bd3 {[%emt 0:00:30]} Bb4 {[%emt 0:01:45]} 17. Bb1 {[%emt 0:05:25]} Nc4 {[%emt 0:04:07]} 18. Qd3 {[%emt 0:01:07]} f5 {[%emt 0:02:01]} 19. Qe2 {[%emt 0:07:11]} Re8 {[%emt 0:03:42]} 20. Be5 {[%emt 0:03:01]} Nxe5 {[%emt 0:02:13]} 21. Nxe5 {[%emt 0:01:55]} Nf4 {[%emt 0:05:54]} 22. Qd2 {[%emt 0:01:09]} Qg5 {[%emt 0:00:54]} 0-1

[Event "World Senior chT-50 2019"]
[Site "Rhodes"]
[Date "2019.04.22"]
[Round "7.20"]
[White "Kranzl, Peter"]
[Black "Homer, Stephen J"]
[Result "1/2-1/2"]
[ECO "B22"]
[WhiteElo "2145"]
[BlackElo "2039"]
[Annotator "NA"]
[PlyCount "47"]
[EventDate "2019.04.16"]
[EventType "team-tourn"]
[EventCountry "GRE"]
[SourceTitle "playchess.com"]
[Source "ChessBase"]
[SourceQuality "1"]
[WhiteTeam "Austria"]
[BlackTeam "England"]
[WhiteTeamCountry "AUT"]
[BlackTeamCountry "ENG"]
[TimeControl "40/5400+30:1800+30"]

1. e4 {[%emt 0:00:00]} c5 {[%emt 0:00:00]} 2. c3 {[%emt 0:00:06]} Nf6 {[%emt 0:00:00]} 3. e5 {[%emt 0:00:30]} Nd5 {[%emt 0:00:00]} 4. d4 {[%emt 0:00:16]} cxd4 {[%emt 0:00:00]} 5. Qxd4 {[%emt 0:00:13]} e6 {[%emt 0:00:13]} 6. Nf3 {[%emt 0:01:17]} Nc6 {[%emt 0:03:53]} 7. Qe4 {[%emt 0:00:16]} d6 {[%emt 0:02:12]} 8. Nbd2 {[%emt 0:00:57]} dxe5 {[%emt 0:10:09]} 9. Nxe5 {[%emt 0:01:01]} Nxe5 {[%emt 0:07:26]} 10. Qxe5 {[%emt 0:00:07]} Bd7 {[%emt 0:00:31]} 11. Be2 {[%emt 0:05:06]} Qc7 {[%emt 0:04:36]} 12. Qxc7 {[%emt 0:02:28]} Nxc7 {[%emt 0:00:02]} 13. Bf3 {[%emt 0:00:40]} O-O-O {[%emt 0:04:00]} 14. O-O $11 {[%emt 0:05:27]} f6 {[%emt 0:05:04]} 15. Nb3 {[%emt 0:12:41]} Kb8 {[%emt 0:00:13]} 16. Be3 {[%emt 0:17:25]} e5 {[%emt 0:00:02]} 17. Rfd1 {[%emt 0:04:05]} Be7 {[%emt 0:00:27]} 18. Rd2 {[%emt 0:08:52]} Bc8 {[%emt 0:00:06]} 19. Rad1 {[%emt 0:00:12]} Ne6 {[%emt 0:12:05]} 20. Rxd8 {[%emt 0:03:47]} Rxd8 {[%emt 0:00:03]} 21. Rxd8 {[%emt 0:00:05]} Nxd8 {[%emt 0:00:17]} 22. Kf1 {[%emt 0:09:24]} Be6 {[%emt 0:01:26]} 23. Ke1 {[%emt 0:03:52]} b6 {[%emt 0:01:29]} 24. Nc1 {[%emt 0:01:31]} 1/2-1/2

[Event "World Senior chT-50 2019"]
[Site "Rhodes"]
[Date "2019.04.22"]
[Round "7.21"]
[White "Mitrandzas, Athanasios"]
[Black "Yrjola, Jouni"]
[Result "1/2-1/2"]
[ECO "A20"]
[WhiteElo "2055"]
[BlackElo "2327"]
[Annotator "NA"]
[PlyCount "33"]
[EventDate "2019.04.16"]
[EventType "team-tourn"]
[EventCountry "GRE"]
[SourceTitle "playchess.com"]
[Source "ChessBase"]
[SourceQuality "1"]
[WhiteTeam "Greece"]
[BlackTeam "Finland"]
[WhiteTeamCountry "GRE"]
[BlackTeamCountry "FIN"]
[TimeControl "40/5400+30:1800+30"]

1. c4 {[%emt 0:00:06]} e5 {[%emt 0:00:00]} 2. g3 {[%emt 0:00:14]} Nf6 {[%emt 0:00:39]} 3. Bg2 {[%emt 0:00:11]} c6 {[%emt 0:00:24]} 4. d4 {[%emt 0:00:17]} e4 {[%emt 0:00:46]} 5. Nc3 {[%emt 0:00:15]} d5 {[%emt 0:00:08]} 6. Bg5 {[%emt 0:05:21]} Bb4 {[%emt 0:01:38]} 7. Rc1 {[%emt 0:05:10]} Nbd7 {[%emt 0:02:35]} 8. cxd5 {[%emt 0:00:12]} cxd5 {[%emt 0:00:12]} 9. Qb3 {[%emt 0:00:18]} Qb6 {[%emt 0:13:48]} 10. e3 {[%emt 0:03:05]} h6 {[%emt 0:04:28]} 11. Bxf6 {[%emt 0:07:32]} Nxf6 $11 {[%emt 0:00:45]} 12. Nge2 {[%emt 0:00:12]} Bxc3+ {[%emt 0:22:57]} 13. Rxc3 {[%emt 0:02:37]} Bd7 {[%emt 0:06:31]} 14. O-O {[%emt 0:11:53]} Qxb3 {[%emt 0:12:53]} 15. Rxb3 {[%emt 0:03:50]} Bc6 {[%emt 0:02:31]} 16. Rc1 {[%emt 0:11:23]} Ke7 {[%emt 0:00:24]} 17. Nc3 {[%emt 0:03:52]} 1/2-1/2

[Event "World Senior chT-50 2019"]
[Site "Rhodes"]
[Date "2019.04.22"]
[Round "7.22"]
[White "Viljava, Tapani"]
[Black "Ilandzis, Spyridon"]
[Result "0-1"]
[ECO "A36"]
[WhiteElo "2159"]
[BlackElo "2021"]
[Annotator "NA"]
[PlyCount "56"]
[EventDate "2019.04.16"]
[EventType "team-tourn"]
[EventCountry "GRE"]
[SourceTitle "playchess.com"]
[Source "ChessBase"]
[SourceQuality "1"]
[WhiteTeam "Finland"]
[BlackTeam "Greece"]
[WhiteTeamCountry "FIN"]
[BlackTeamCountry "GRE"]
[TimeControl "40/5400+30:1800+30"]

1. g3 {[%emt 0:01:25]} c5 {[%emt 0:00:22]} 2. c4 {[%emt 0:01:13]} Nc6 {[%emt 0:00:50]} 3. Bg2 {[%emt 0:00:41]} g6 {[%emt 0:00:25]} 4. Nc3 {[%emt 0:00:51]} Bg7 {[%emt 0:00:14]} 5. a3 {[%emt 0:00:36]} e6 {[%emt 0:02:40]} 6. Rb1 {[%emt 0:04:53]} a5 {[%emt 0:02:55]} 7. Nh3 {[%emt 0:15:28]} Nge7 {[%emt 0:03:09]} 8. Nf4 {[%emt 0:00:24]} b6 $11 {[%emt 0:11:41]} 9. O-O {[%emt 0:06:40]} Bb7 {[%emt 0:02:19]} 10. d3 {[%emt 0:15:10]} Qb8 {[%emt 0:08:42]} 11. Bd2 {[%emt 0:01:24]} Ne5 {[%emt 0:03:13]} 12. b4 {[%emt 0:03:00]} Bxg2 {[%emt 0:07:07]} 13. Kxg2 {[%emt 0:03:22]} axb4 {[%emt 0:12:35]} 14. axb4 {[%emt 0:00:01]} Qc8 {[%emt 0:00:30]} 15. bxc5 {[%emt 0:09:30]} bxc5 {[%emt 0:00:19]} 16. Rb6 {[%emt 0:02:52]} O-O {[%emt 0:04:43]} 17. Qb1 {[%emt 0:05:44]} Ra3 {[%emt 0:04:27]} 18. Rc1 {[%emt 0:03:23]} Nf5 {[%emt 0:01:10]} 19. Nb5 {[%emt 0:04:11]} Qa8+ {[%emt 0:01:04]} 20. Kg1 {[%emt 0:00:22]} Ra1 {[%emt 0:05:03]} 21. Qb3 {[%emt 0:01:31]} Rxc1+ {[%emt 0:06:21]} 22. Bxc1 {[%emt 0:00:02]} Qa5 {[%emt 0:00:13]} 23. Nc3 {[%emt 0:00:21]} Nd4 {[%emt 0:00:24]} 24. Qb2 {[%emt 0:01:05]} g5 {[%emt 0:01:00]} 25. Nh5 {[%emt 0:00:30]} Qxc3 {[%emt 0:00:20]} 26. Qxc3 {[%emt 0:00:16]} Nxe2+ {[%emt 0:00:11]} 27. Kf1 {[%emt 0:00:37]} Nxc3 {[%emt 0:00:14]} 28. Nxg7 {[%emt 0:00:09]} Nxd3 {[%emt 0:02:03]} 0-1

[Event "World Senior chT-50 2019"]
[Site "Rhodes"]
[Date "2019.04.22"]
[Round "7.23"]
[White "Hrisanthopoulos, Dimitrios"]
[Black "Salonen, Jyrki"]
[Result "1-0"]
[ECO "B33"]
[WhiteElo "1995"]
[BlackElo "2162"]
[Annotator "NA"]
[PlyCount "83"]
[EventDate "2019.04.16"]
[EventType "team-tourn"]
[EventCountry "GRE"]
[SourceTitle "playchess.com"]
[Source "ChessBase"]
[SourceQuality "1"]
[WhiteTeam "Greece"]
[BlackTeam "Finland"]
[WhiteTeamCountry "GRE"]
[BlackTeamCountry "FIN"]
[TimeControl "40/5400+30:1800+30"]

1. e4 {[%emt 0:00:00]} c5 {[%emt 0:00:00]} 2. Nf3 {[%emt 0:00:00]} Nc6 {[%emt 0:00:00]} 3. d4 {[%emt 0:00:15]} cxd4 {[%emt 0:00:00]} 4. Nxd4 {[%emt 0:00:14]} e5 {[%emt 0:02:58]} 5. Nb5 {[%emt 0:00:07]} d6 {[%emt 0:01:04]} 6. a4 {[%emt 0:01:30]} Be6 {[%emt 0:03:00]} 7. N1c3 {[%emt 0:01:24]} a6 {[%emt 0:03:43]} 8. Na3 {[%emt 0:00:21]} Nf6 {[%emt 0:01:52]} 9. Bc4 {[%emt 0:04:42]} Be7 {[%emt 0:18:51]} 10. Bg5 {[%emt 0:08:32]} Nxe4 {[%emt 0:14:19]} 11. Nxe4 {[%emt 0:07:38]} Bxg5 {[%emt 0:12:18]} 12. Bxe6 {[%emt 0:01:23]} fxe6 {[%emt 0:01:46]} 13. Qh5+ {[%emt 0:00:12]} g6 {[%emt 0:01:44]} 14. Qxg5 {[%emt 0:00:12]} Qxg5 {[%emt 0:04:06]} 15. Nxg5 {[%emt 0:00:31]} h6 {[%emt 0:00:20]} 16. Ne4 {[%emt 0:02:18]} d5 {[%emt 0:11:22]} 17. Nc3 {[%emt 0:03:58]} Ke7 {[%emt 0:03:56]} 18. O-O {[%emt 0:00:48]} Rac8 {[%emt 0:00:46]} 19. Rfe1 {[%emt 0:01:22]} Rhf8 {[%emt 0:01:11]} 20. f3 {[%emt 0:03:39]} Rf4 {[%emt 0:01:36]} 21. b3 {[%emt 0:02:36]} Nd4 {[%emt 0:03:21]} 22. Ne2 {[%emt 0:01:04]} Nxe2+ {[%emt 0:01:20]} 23. Rxe2 {[%emt 0:00:07]} Kd6 {[%emt 0:02:09]} 24. Rae1 {[%emt 0:00:29]} Rf5 {[%emt 0:05:01]} 25. c4 {[%emt 0:02:29]} Kc5 {[%emt 0:01:44]} 26. Nc2 {[%emt 0:04:23]} dxc4 {[%emt 0:02:53]} 27. Ne3 {[%emt 0:00:40]} b5 {[%emt 0:00:50]} 28. Nxf5 {[%emt 0:00:24]} exf5 {[%emt 0:00:25]} 29. axb5 {[%emt 0:00:15]} axb5 {[%emt 0:00:17]} 30. bxc4 {[%emt 0:01:23]} bxc4 {[%emt 0:00:10]} 31. Rxe5+ {[%emt 0:00:40]} Kd4 {[%emt 0:00:57]} 32. Re6 {[%emt 0:04:24]} c3 {[%emt 0:01:21]} 33. Rd6+ {[%emt 0:00:52]} Kc4 {[%emt 0:00:16]} 34. Rxg6 {[%emt 0:00:27]} h5 {[%emt 0:00:25]} 35. Rg5 {[%emt 0:02:19]} c2 {[%emt 0:00:20]} 36. Rc1 {[%emt 0:00:09]} Kc3 {[%emt 0:01:02]} 37. Rxf5 {[%emt 0:00:28]} h4 {[%emt 0:00:24]} 38. Rh5 {[%emt 0:00:24]} Rc4 {[%emt 0:00:11]} 39. Re5 {[%emt 0:01:24]} Kb2 {[%emt 0:00:55]} 40. Ree1 {[%emt 0:00:00]} h3 {[%emt 0:00:00]} 41. g4 {[%emt 0:07:12]} Rd4 {[%emt 0:01:12]} 42. Kf2 {[%emt 0:00:30]} 1-0